[Event "DLM Youth 2024"]
[Site "Tuebingen"]
[Date "2024.10.03"]
[Round "1"]
[White "Glowiak, Alexandra"]
[Black "Junge, Mattheo Gabriel"]
[Result "0-1"]
[ECO "B10"]
[WhiteElo "1839"]
[BlackElo "1907"]
[Annotator "RC"]
[PlyCount "104"]
[EventDate "2024.10.03"]
[EventType "team-swiss"]
[EventRounds "7"]
[EventCountry "GER"]
[SourceTitle "playchess.com"]
[Source "ChessBase"]
[SourceQuality "1"]
[TimeControl "40/5400+30:1800+30"]

1. e4 {[%emt 0:00:03]} c6 {[%emt 0:00:10]} 2. Nf3 {[%emt 0:00:10]} g6 {[%emt 0:00:18]} 3. Nc3 {[%emt 0:03:30]} Bg7 {[%emt 0:01:24]} 4. Be2 {[%emt 0:03:33]} d6 {[%emt 0:03:07]} 5. a3 {[%emt 0:14:35]} Nf6 {[%emt 0:01:30]} 6. d4 {[%emt 0:09:23]} O-O {[%emt 0:08:26]} 7. O-O {[%emt 0:01:22]} Bg4 {[%emt 0:09:25]} 8. Be3 {[%emt 0:04:22]} Nbd7 {[%emt 0:04:38]} 9. h3 {[%emt 0:04:41]} Bxf3 {[%emt 0:00:11]} 10. Bxf3 {[%emt 0:00:08]} e5 {[%emt 0:01:27]} 11. d5 {[%emt 0:03:47]} Qc7 {[%emt 0:02:59]} 12. Rc1 {[%emt 0:11:47]} cxd5 {[%emt 0:13:31]} 13. Nxd5 {[%emt 0:02:24]} Nxd5 {[%emt 0:00:30]} 14. Qxd5 {[%emt 0:00:33]} Nb6 {[%emt 0:00:21]} 15. Qa5 {[%emt 0:04:53]} Rfc8 {[%emt 0:02:48]} 16. b3 {[%emt 0:03:05]} Qc3 {[%emt 0:11:40]} 17. Qxc3 {[%emt 0:19:54]} Rxc3 {[%emt 0:00:06]} 18. Bd2 {[%emt 0:00:13]} Rc6 {[%emt 0:01:06]} 19. c4 {[%emt 0:00:11]} a5 {[%emt 0:01:46]} 20. a4 {[%emt 0:02:46]} Nd7 {[%emt 0:02:12]} 21. Be3 {[%emt 0:00:39]} h5 {[%emt 0:08:56]} 22. Bd1 {[%emt 0:04:49]} Kh7 {[%emt 0:00:51]} 23. g4 {[%emt 0:01:27]} hxg4 {[%emt 0:02:38]} 24. hxg4 {[%emt 0:00:01]} Nc5 {[%emt 0:01:15]} 25. Bc2 {[%emt 0:00:43]} Ne6 {[%emt 0:04:26]} 26. g5 {[%emt 0:01:18]} Bf8 {[%emt 0:00:48]} 27. f4 {[%emt 0:00:40]} exf4 {[%emt 0:01:21]} 28. Bxf4 {[%emt 0:00:02]} Be7 {[%emt 0:04:52]} 29. Rcd1 {[%emt 0:00:44]} Nxf4 {[%emt 0:00:49]} 30. Rxf4 {[%emt 0:00:11]} Kg7 {[%emt 0:00:12]} 31. Rg4 {[%emt 0:00:58]} Rh8 {[%emt 0:04:26]} 32. Rd5 Rc5 {[%emt 0:00:08]} 33. Bd3 {[%emt 0:02:58]} Rh3 {[%emt 0:01:00]} 34. Rxc5 {[%emt 0:01:02]} dxc5 {[%emt 0:00:03]} 35. Bc2 {[%emt 0:00:16]} Rc3 {[%emt 0:00:13]} 36. Rg2 {[%emt 0:00:13]} b6 {[%emt 0:00:13]} 37. Bd1 {[%emt 0:01:01]} Rc1 {[%emt 0:00:15]} 38. Rd2 {[%emt 0:00:12]} Bxg5 {[%emt 0:00:07]} 39. Rd6 {[%emt 0:00:29]} Bf4 {[%emt 0:00:29]} 40. Rd5 {[%emt 0:00:45]} Be3+ {[%emt 0:00:40]} 41. Kf1 {[%emt 0:01:42]} Bd4 {[%emt 0:00:13]} 42. Ke2 {[%emt 0:00:16]} Rc3 {[%emt 0:00:07]} 43. Kd2 {[%emt 0:00:15]} Re3 {[%emt 0:02:12]} 44. Bc2 {[%emt 0:03:16]} Rh3 {[%emt 0:02:59]} 45. Bd3 {[%emt 0:03:55]} Be3+ {[%emt 0:01:34]} 46. Ke2 {[%emt 0:02:48]} Bf4 {[%emt 0:00:10]} 47. Kd1 {[%emt 0:06:11]} g5 {[%emt 0:00:29]} 48. Kc2 {[%emt 0:02:19]} Rh2+ {[%emt 0:00:12]} 49. Kb1 {[%emt 0:00:54]} g4 {[%emt 0:00:37]} 50. Rf5 {[%emt 0:00:51]} Be3 {[%emt 0:00:10]} 51. Bf1 {[%emt 0:01:13]} g3 {[%emt 0:01:50]} 52. Rf3 {[%emt 0:03:17]} Bf2 {[%emt 0:00:14]} 0-1

[Event "DLM Youth 2024"]
[Site "Tuebingen"]
[Date "2024.10.03"]
[Round "1"]
[White "Bursan, Ana-Maria"]
[Black "Wang, Enya Marie"]
[Result "0-1"]
[ECO "C25"]
[WhiteElo "1769"]
[BlackElo "1613"]
[Annotator "NA RC"]
[PlyCount "78"]
[EventDate "2024.10.03"]
[EventType "team-swiss"]
[EventRounds "7"]
[EventCountry "GER"]
[SourceTitle "playchess.com"]
[Source "ChessBase"]
[SourceQuality "1"]
[TimeControl "40/5400+30:1800+30"]

1. e4 {[%emt 0:00:04]} e5 {[%emt 0:00:14]} 2. Nc3 {[%emt 0:00:06]} Nc6 {[%emt 0:00:07]} 3. f4 {[%emt 0:00:15]} exf4 {[%emt 0:00:11]} 4. Nf3 {[%emt 0:00:17]} g5 {[%emt 0:00:40]} 5. g3 {[%emt 0:00:26]} g4 {[%emt 0:00:45]} 6. Nh4 {[%emt 0:00:56]} Nd4 {[%emt 0:00:56]} 7. Nd5 {[%emt 0:02:54]} f3 {[%emt 0:01:17]} 8. c3 {[%emt 0:03:36]} Ne6 {[%emt 0:00:41]} 9. Nf5 {[%emt 0:08:30]} Ng7 {[%emt 0:06:52]} 10. h3 {[%emt 0:08:51]} Nxf5 {[%emt 0:01:03]} 11. exf5 {[%emt 0:00:18]} Bd6 {[%emt 0:01:22]} 12. Qa4 {[%emt 0:17:19]} Bxg3+ {[%emt 0:05:10]} 13. Kd1 {[%emt 0:00:06]} Nf6 {[%emt 0:08:02]} 14. Nxf6+ {[%emt 0:04:49]} Qxf6 {[%emt 0:00:20]} 15. hxg4 {[%emt 0:06:07]} Qe5 {[%emt 0:05:38]} 16. Kc2 {[%emt 0:09:45]} b6 {[%emt 0:02:45]} 17. Rg1 {[%emt 0:09:33]} Bb7 {[%emt 0:02:07]} 18. d4 {[%emt 0:06:28]} Qe4+ {[%emt 0:04:47]} 19. Bd3 {[%emt 0:01:35]} Qxg4 {[%emt 0:01:37]} 20. Be3 {[%emt 0:01:29]} Be4 {[%emt 0:02:18]} 21. Rxg3 {[%emt 0:07:16]} Bxd3+ {[%emt 0:02:56]} 22. Kxd3 {[%emt 0:00:02]} Qxg3 {[%emt 0:00:27]} 23. Rg1 {[%emt 0:01:59]} Qh3 {[%emt 0:04:22]} 24. Qb5 {[%emt 0:03:13]} O-O-O {[%emt 0:01:14]} 25. Kc4 {[%emt 0:02:47]} d5+ {[%emt 0:02:10]} 26. Kb3 {[%emt 0:00:40]} Qxf5 {[%emt 0:00:55]} 27. Qc6 {[%emt 0:01:19]} Kb8 {[%emt 0:01:04]} 28. Bg5 {[%emt 0:02:06]} Rd6 {[%emt 0:01:41]} 29. Qb5 {[%emt 0:00:30]} Rg8 {[%emt 0:01:29]} 30. Be7 {[%emt 0:00:22]} Rxg1 {[%emt 0:01:07]} 31. Bxd6 {[%emt 0:00:12]} cxd6 {[%emt 0:00:33]} 32. Qe8+ {[%emt 0:00:50]} Qc8 {[%emt 0:00:17]} 33. Qxf7 {[%emt 0:00:20]} Qc4+ {[%emt 0:00:29]} 34. Ka3 {[%emt 0:00:10]} Rg2 {[%emt 0:02:20]} 35. Qxf3 {[%emt 0:01:23]} Qa6+ {[%emt 0:00:22]} 36. Kb3 {[%emt 0:00:10]} Qb5+ {[%emt 0:00:08]} 37. Ka3 {[%emt 0:00:14]} Qxb2+ {[%emt 0:00:11]} 38. Ka4 {[%emt 0:00:08]} Qxa2+ {[%emt 0:00:16]} 39. Kb5 {[%emt 0:00:02]} Qc4# {[%emt 0:00:50]} 0-1

[Event "DLM Youth 2024"]
[Site "Tuebingen"]
[Date "2024.10.03"]
[Round "1"]
[White "Goepfert, Gregor"]
[Black "Peglau, Paul David"]
[Result "0-1"]
[ECO "B44"]
[WhiteElo "1759"]
[BlackElo "1943"]
[Annotator "RC"]
[PlyCount "86"]
[EventDate "2024.10.03"]
[EventType "team-swiss"]
[EventRounds "7"]
[EventCountry "GER"]
[SourceTitle "playchess.com"]
[Source "ChessBase"]
[SourceQuality "1"]
[TimeControl "40/5400+30:1800+30"]

1. e4 {[%emt 0:00:08]} c5 {[%emt 0:00:18]} 2. Nf3 {[%emt 0:00:14]} e6 {[%emt 0:00:21]} 3. c4 {[%emt 0:03:24]} Nc6 {[%emt 0:01:05]} 4. Nc3 {[%emt 0:02:40]} Nf6 {[%emt 0:04:34]} 5. d4 {[%emt 0:06:43]} cxd4 {[%emt 0:01:25]} 6. Nxd4 {[%emt 0:00:08]} Bb4 {[%emt 0:07:27]} 7. Nxc6 {[%emt 0:08:54]} dxc6 {[%emt 0:04:47]} 8. Qxd8+ {[%emt 0:06:58]} Kxd8 {[%emt 0:00:02]} 9. Bd2 {[%emt 0:01:53]} e5 {[%emt 0:03:47]} 10. Bd3 {[%emt 0:11:23]} Be6 {[%emt 0:03:23]} 11. a3 {[%emt 0:06:59]} Bd6 {[%emt 0:01:57]} 12. b4 {[%emt 0:03:46]} Ke7 {[%emt 0:01:52]} 13. Ke2 {[%emt 0:03:13]} Rhd8 {[%emt 0:02:32]} 14. f3 {[%emt 0:01:54]} Rd7 {[%emt 0:04:00]} 15. Be3 {[%emt 0:06:37]} Bc7 {[%emt 0:11:22]} 16. Rhd1 {[%emt 0:04:59]} Bb6 {[%emt 0:11:44]} 17. c5 {[%emt 0:01:57]} Bc7 {[%emt 0:00:29]} 18. a4 {[%emt 0:05:29]} Rad8 {[%emt 0:01:38]} 19. Rd2 {[%emt 0:03:50]} Rxd3 {[%emt 0:08:17]} 20. Rxd3 {[%emt 0:00:11]} Bc4 {[%emt 0:00:11]} 21. Rad1 {[%emt 0:00:18]} Nh5 {[%emt 0:03:03]} 22. g3 {[%emt 0:00:58]} g6 {[%emt 0:01:49]} 23. Nb1 {[%emt 0:09:24]} a5 {[%emt 0:04:39]} 24. Na3 {[%emt 0:03:17]} Bxd3+ {[%emt 0:02:26]} 25. Rxd3 {[%emt 0:00:01]} axb4 {[%emt 0:02:07]} 26. Rxd8 {[%emt 0:01:24]} Kxd8 {[%emt 0:04:49]} 27. Nc4 {[%emt 0:00:53]} f5 {[%emt 0:02:10]} 28. Kd3 {[%emt 0:01:57]} Kd7 {[%emt 0:05:57]} 29. Bg5 {[%emt 0:02:12]} Ke6 {[%emt 0:02:08]} 30. Kc2 {[%emt 0:00:54]} fxe4 {[%emt 0:02:36]} 31. fxe4 {[%emt 0:00:03]} Nf6 {[%emt 0:00:44]} 32. Bxf6 {[%emt 0:02:29]} Kxf6 {[%emt 0:00:01]} 33. Kb3 {[%emt 0:01:04]} Kg5 {[%emt 0:01:07]} 34. h3 {[%emt 0:00:36]} h5 {[%emt 0:00:55]} 35. Nd6 {[%emt 0:00:28]} h4 {[%emt 0:01:47]} 36. g4 {[%emt 0:00:22]} Kf4 {[%emt 0:00:29]} 37. Nxb7 {[%emt 0:00:33]} Kxe4 {[%emt 0:00:30]} 38. a5 {[%emt 0:00:22]} Kd4 {[%emt 0:00:28]} 39. Kxb4 {[%emt 0:00:24]} e4 {[%emt 0:00:31]} 40. a6 {[%emt 0:00:49]} e3 {[%emt 0:00:30]} 41. a7 {[%emt 0:01:53]} e2 {[%emt 0:00:12]} 42. a8=Q {[%emt 0:00:07]} e1=Q+ {[%emt 0:00:10]} 43. Kb3 {[%emt 0:01:47]} Qb1+ {[%emt 0:00:14]} 0-1

[Event "DLM Youth 2024"]
[Site "Tuebingen"]
[Date "2024.10.03"]
[Round "1"]
[White "Tu, Audrey"]
[Black "Lu, Sheng"]
[Result "1-0"]
[ECO "C77"]
[WhiteElo "1722"]
[BlackElo "1559"]
[Annotator "NA RC"]
[PlyCount "47"]
[EventDate "2024.10.03"]
[EventType "team-swiss"]
[EventRounds "7"]
[EventCountry "GER"]
[SourceTitle "playchess.com"]
[Source "ChessBase"]
[SourceQuality "1"]
[TimeControl "40/5400+30:1800+30"]

1. e4 {[%emt 0:00:02]} e5 {[%emt 0:00:01]} 2. Nf3 {[%emt 0:00:07]} Nc6 {[%emt 0:00:09]} 3. Bb5 {[%emt 0:00:05]} Nf6 {[%emt 0:00:08]} 4. d3 {[%emt 0:00:12]} d6 {[%emt 0:00:17]} 5. c3 {[%emt 0:00:48]} Be7 {[%emt 0:00:42]} 6. Nbd2 {[%emt 0:01:12]} O-O {[%emt 0:01:41]} 7. O-O {[%emt 0:01:54]} a6 {[%emt 0:01:34]} 8. Ba4 {[%emt 0:01:28]} b5 {[%emt 0:00:45]} 9. Bc2 {[%emt 0:00:51]} b4 {[%emt 0:03:46]} 10. Re1 {[%emt 0:02:54]} Re8 {[%emt 0:04:08]} 11. Nf1 {[%emt 0:04:53]} Bf8 {[%emt 0:03:35]} 12. Ng3 {[%emt 0:06:13]} bxc3 {[%emt 0:02:32]} 13. bxc3 {[%emt 0:01:23]} Rb8 {[%emt 0:01:22]} 14. Bd2 {[%emt 0:11:42]} Bg4 {[%emt 0:03:45]} 15. Ba4 {[%emt 0:06:49]} Bd7 {[%emt 0:03:48]} 16. Rb1 {[%emt 0:04:17]} Ne7 {[%emt 0:05:44]} 17. Bb3 {[%emt 0:02:44]} Ng6 {[%emt 0:03:09]} 18. d4 {[%emt 0:08:33]} exd4 {[%emt 0:04:07]} 19. cxd4 {[%emt 0:02:02]} Bc6 {[%emt 0:02:41]} 20. Ng5 {[%emt 0:01:45]} Re7 {[%emt 0:05:44]} 21. Qe2 {[%emt 0:04:50]} h6 {[%emt 0:02:13]} 22. Nxf7 {[%emt 0:01:20]} Rxf7 {[%emt 0:00:48]} 23. Bxf7+ {[%emt 0:00:40]} Kxf7 {[%emt 0:00:39]} 24. Qc4+ {[%emt 0:00:30]} 1-0

[Event "DLM Youth 2024"]
[Site "Tuebingen"]
[Date "2024.10.03"]
[Round "1"]
[White "Hoffmann, Sophia"]
[Black "Wilmink, Anna"]
[Result "0-1"]
[ECO "A80"]
[WhiteElo "1718"]
[BlackElo "1927"]
[Annotator "RC"]
[PlyCount "62"]
[EventDate "2024.10.03"]
[EventType "team-swiss"]
[EventRounds "7"]
[EventCountry "GER"]
[SourceTitle "playchess.com"]
[Source "ChessBase"]
[SourceQuality "1"]
[TimeControl "40/5400+30:1800+30"]

1. d4 {[%emt 0:00:14]} f5 {[%emt 0:00:13]} 2. Bf4 {[%emt 0:00:45]} e6 {[%emt 0:00:24]} 3. e3 {[%emt 0:01:52]} Nf6 {[%emt 0:00:58]} 4. Nf3 {[%emt 0:02:37]} b6 {[%emt 0:00:34]} 5. Nbd2 {[%emt 0:02:29]} Bb7 {[%emt 0:01:16]} 6. Bc4 {[%emt 0:06:06]} Be7 {[%emt 0:07:36]} 7. O-O {[%emt 0:07:19]} O-O {[%emt 0:07:24]} 8. Ng5 {[%emt 0:13:42]} c5 {[%emt 0:13:25]} 9. e4 {[%emt 0:05:57]} fxe4 {[%emt 0:04:08]} 10. Bxe6+ {[%emt 0:13:34]} dxe6 {[%emt 0:00:14]} 11. Nxe6 {[%emt 0:00:09]} Qd5 {[%emt 0:05:04]} 12. Nxf8 {[%emt 0:02:16]} Bxf8 {[%emt 0:01:08]} 13. dxc5 {[%emt 0:01:33]} e3 {[%emt 0:01:47]} 14. Nf3 {[%emt 0:01:35]} exf2+ {[%emt 0:00:31]} 15. Kh1 {[%emt 0:01:21]} Bxc5 {[%emt 0:03:24]} 16. b4 {[%emt 0:08:40]} Bxb4 {[%emt 0:03:50]} 17. Rxf2 {[%emt 0:02:47]} Nbd7 {[%emt 0:03:36]} 18. Qf1 {[%emt 0:08:12]} Ng4 {[%emt 0:12:31]} 19. Re2 {[%emt 0:03:57]} Ba6 {[%emt 0:01:10]} 20. Rd1 {[%emt 0:01:45]} Bxe2 {[%emt 0:02:58]} 21. Rxd5 {[%emt 0:03:19]} Bxf1 {[%emt 0:00:12]} 22. Rxd7 {[%emt 0:00:36]} Bb5 {[%emt 0:06:34]} 23. Rd5 {[%emt 0:06:50]} Bc6 {[%emt 0:03:13]} 24. Rg5 {[%emt 0:01:12]} Nf2+ {[%emt 0:01:48]} 25. Kg1 {[%emt 0:00:30]} Ne4 {[%emt 0:00:31]} 26. Rh5 {[%emt 0:01:13]} Bc5+ {[%emt 0:01:49]} 27. Kf1 {[%emt 0:00:27]} Bb5+ {[%emt 0:01:11]} 28. Ke1 {[%emt 0:00:12]} Rd8 {[%emt 0:00:59]} 29. Nd2 {[%emt 0:02:10]} Bf2+ {[%emt 0:02:05]} 30. Kd1 {[%emt 0:00:10]} Nc3+ {[%emt 0:00:55]} 31. Kc1 {[%emt 0:00:33]} Ne2+ {[%emt 0:00:34]} 0-1

[Event "DLM Youth 2024"]
[Site "Tuebingen"]
[Date "2024.10.03"]
[Round "1"]
[White "Sun, Christopher"]
[Black "Li, Yunqi"]
[Result "0-1"]
[ECO "C01"]
[WhiteElo "1711"]
[BlackElo "2004"]
[Annotator "RC"]
[PlyCount "34"]
[EventDate "2024.10.03"]
[EventType "team-swiss"]
[EventRounds "7"]
[EventCountry "GER"]
[SourceTitle "playchess.com"]
[Source "ChessBase"]
[SourceQuality "1"]
[TimeControl "40/5400+30:1800+30"]

1. e4 {[%emt 0:00:03]} e6 {[%emt 0:00:09]} 2. d4 {[%emt 0:00:04]} d5 {[%emt 0:00:04]} 3. exd5 {[%emt 0:00:05]} exd5 {[%emt 0:00:05]} 4. Nf3 {[%emt 0:00:07]} Bd6 {[%emt 0:00:15]} 5. Bd3 {[%emt 0:00:04]} Nc6 {[%emt 0:00:06]} 6. c3 {[%emt 0:00:23]} Nge7 {[%emt 0:00:11]} 7. Bg5 {[%emt 0:00:30]} Bg4 {[%emt 0:01:00]} 8. Nbd2 {[%emt 0:01:08]} f6 {[%emt 0:00:12]} 9. Be3 {[%emt 0:02:10]} Qd7 {[%emt 0:01:11]} 10. O-O {[%emt 0:04:38]} O-O-O {[%emt 0:01:43]} 11. b4 {[%emt 0:02:23]} Rde8 {[%emt 0:00:56]} 12. a4 {[%emt 0:02:01]} g5 {[%emt 0:04:58]} 13. Nb3 {[%emt 0:01:49]} Nf5 {[%emt 0:01:48]} 14. b5 {[%emt 0:08:07]} Nd8 {[%emt 0:00:50]} 15. Bd2 {[%emt 0:22:30]} Nh4 {[%emt 0:00:26]} 16. Kh1 {[%emt 0:07:48]} Bxf3 {[%emt 0:00:25]} 17. gxf3 {[%emt 0:00:11]} Qh3 {[%emt 0:00:05]} 0-1

[Event "DLM Youth 2024"]
[Site "Tuebingen"]
[Date "2024.10.03"]
[Round "1"]
[White "Heidtkamp, Anna"]
[Black "Krannich, Eva"]
[Result "1-0"]
[ECO "B08"]
[WhiteElo "1704"]
[BlackElo "1582"]
[Annotator "NA RC"]
[PlyCount "85"]
[EventDate "2024.10.03"]
[EventType "team-swiss"]
[EventRounds "7"]
[EventCountry "GER"]
[SourceTitle "playchess.com"]
[Source "ChessBase"]
[SourceQuality "1"]
[TimeControl "40/5400+30:1800+30"]

1. d4 {[%emt 0:00:01]} Nf6 {[%emt 0:00:09]} 2. Nc3 {[%emt 0:00:06]} d6 {[%emt 0:00:19]} 3. Bf4 {[%emt 0:00:12]} g6 {[%emt 0:00:12]} 4. e4 {[%emt 0:00:51]} Bg7 {[%emt 0:00:31]} 5. Nf3 {[%emt 0:00:55]} Nbd7 {[%emt 0:00:46]} 6. Bc4 {[%emt 0:02:33]} O-O {[%emt 0:00:41]} 7. O-O {[%emt 0:01:22]} a6 {[%emt 0:00:50]} 8. a3 {[%emt 0:03:09]} Qe8 {[%emt 0:01:45]} 9. e5 {[%emt 0:14:55]} dxe5 {[%emt 0:01:28]} 10. Nxe5 {[%emt 0:00:30]} Nxe5 {[%emt 0:01:27]} 11. Bxe5 {[%emt 0:02:31]} Bf5 {[%emt 0:02:59]} 12. Bb3 {[%emt 0:09:14]} Qc6 {[%emt 0:01:42]} 13. Re1 {[%emt 0:10:27]} e6 {[%emt 0:10:03]} 14. Rc1 {[%emt 0:05:45]} Nd5 {[%emt 0:02:46]} 15. f3 {[%emt 0:11:55]} g5 {[%emt 0:02:45]} 16. Nxd5 {[%emt 0:03:05]} exd5 {[%emt 0:00:27]} 17. Bxg7 {[%emt 0:00:26]} Kxg7 {[%emt 0:00:07]} 18. Re5 {[%emt 0:00:14]} Be6 {[%emt 0:02:10]} 19. Rxg5+ {[%emt 0:01:03]} Kh8 {[%emt 0:00:23]} 20. Qe1 {[%emt 0:03:28]} Rae8 {[%emt 0:03:39]} 21. Qh4 {[%emt 0:01:31]} Rg8 {[%emt 0:01:44]} 22. Rh5 {[%emt 0:01:09]} Rg7 {[%emt 0:00:21]} 23. Qf6 {[%emt 0:01:03]} Reg8 {[%emt 0:01:44]} 24. g3 {[%emt 0:03:18]} Qd6 {[%emt 0:06:32]} 25. c3 {[%emt 0:03:20]} Qb6 {[%emt 0:02:20]} 26. Bc2 {[%emt 0:00:46]} Bf5 {[%emt 0:01:25]} 27. Qxb6 {[%emt 0:00:49]} cxb6 {[%emt 0:00:15]} 28. Bxf5 {[%emt 0:00:08]} Re8 {[%emt 0:00:30]} 29. Kf2 {[%emt 0:00:08]} f6 {[%emt 0:01:36]} 30. Re1 {[%emt 0:00:27]} Rf8 {[%emt 0:02:11]} 31. Re6 {[%emt 0:00:59]} b5 {[%emt 0:00:20]} 32. g4 {[%emt 0:01:06]} Kg8 {[%emt 0:01:17]} 33. Rh6 {[%emt 0:01:07]} Rgf7 {[%emt 0:00:17]} 34. h3 {[%emt 0:01:19]} Kh8 {[%emt 0:00:29]} 35. Rd6 {[%emt 0:03:21]} Kg8 {[%emt 0:13:13]} 36. Rxd5 {[%emt 0:02:43]} Kh8 {[%emt 0:05:21]} 37. Rh5 {[%emt 0:00:25]} Kg8 {[%emt 0:00:28]} 38. Be6 {[%emt 0:00:06]} Kg7 {[%emt 0:00:12]} 39. Bxf7 {[%emt 0:00:09]} Rxf7 {[%emt 0:00:09]} 40. g5 {[%emt 0:00:08]} fxg5 {[%emt 0:00:34]} 41. Rhxg5+ {[%emt 0:30:12]} Kh8 {[%emt 0:30:18]} 42. Rd8+ {[%emt 0:00:05]} Rf8 {[%emt 0:00:14]} 43. Rxf8# {[%emt 0:00:06]} 1-0

[Event "DLM Youth 2024"]
[Site "Tuebingen"]
[Date "2024.10.03"]
[Round "1"]
[White "Loos, Tilda"]
[Black "Jacobasch, Ronja"]
[Result "1-0"]
[ECO "A48"]
[WhiteElo "1700"]
[BlackElo "1879"]
[Annotator "NA RC"]
[PlyCount "45"]
[EventDate "2024.10.03"]
[EventType "team-swiss"]
[EventRounds "7"]
[EventCountry "GER"]
[SourceTitle "playchess.com"]
[Source "ChessBase"]
[SourceQuality "1"]
[TimeControl "40/5400+30:1800+30"]

1. Nf3 {[%emt 0:00:03]} Nf6 {[%emt 0:00:12]} 2. b3 {[%emt 0:00:04]} g6 {[%emt 0:00:31]} 3. Bb2 {[%emt 0:00:04]} Bg7 {[%emt 0:00:09]} 4. g3 {[%emt 0:00:07]} O-O {[%emt 0:00:17]} 5. Bg2 {[%emt 0:00:03]} d5 {[%emt 0:03:08]} 6. d4 {[%emt 0:02:38]} Nbd7 {[%emt 0:07:13]} 7. O-O {[%emt 0:01:56]} Re8 {[%emt 0:07:02]} 8. c4 {[%emt 0:06:06]} c5 {[%emt 0:09:56]} 9. cxd5 {[%emt 0:10:24]} Nxd5 {[%emt 0:04:42]} 10. e4 {[%emt 0:04:47]} N5f6 {[%emt 0:07:59]} 11. e5 {[%emt 0:07:20]} Nd5 {[%emt 0:11:01]} 12. Nfd2 {[%emt 0:04:49]} e6 {[%emt 0:04:40]} 13. Nc4 {[%emt 0:03:28]} Bf8 {[%emt 0:08:14]} 14. Nbd2 {[%emt 0:03:40]} cxd4 {[%emt 0:06:49]} 15. Ne4 {[%emt 0:06:03]} Nc5 {[%emt 0:04:54]} 16. Ned6 {[%emt 0:02:26]} Bxd6 {[%emt 0:05:21]} 17. Nxd6 {[%emt 0:00:33]} Re7 {[%emt 0:01:37]} 18. Qxd4 {[%emt 0:00:41]} Nd7 {[%emt 0:04:49]} 19. Ba3 {[%emt 0:02:46]} Qa5 {[%emt 0:06:45]} 20. Nxc8 {[%emt 0:01:28]} Qxa3 {[%emt 0:01:10]} 21. Nxe7+ {[%emt 0:00:04]} Qxe7 {[%emt 0:00:12]} 22. Bxd5 {[%emt 0:01:00]} exd5 {[%emt 0:00:06]} 23. Qxd5 {[%emt 0:01:13]} 1-0

[Event "DLM Youth 2024"]
[Site "Tuebingen"]
[Date "2024.10.03"]
[Round "1"]
[White "Tu, Tiffany"]
[Black "Dohon, Maria-Johanna"]
[Result "1/2-1/2"]
[ECO "B23"]
[WhiteElo "1675"]
[BlackElo "1717"]
[Annotator "NA RC"]
[PlyCount "148"]
[EventDate "2024.10.03"]
[EventType "team-swiss"]
[EventRounds "7"]
[EventCountry "GER"]
[SourceTitle "playchess.com"]
[Source "ChessBase"]
[SourceQuality "1"]
[TimeControl "40/5400+30:1800+30"]

1. e4 {[%emt 0:00:03]} c5 {[%emt 0:00:16]} 2. Nc3 {[%emt 0:00:09]} Nc6 {[%emt 0:00:08]} 3. Bb5 {[%emt 0:00:07]} Nd4 {[%emt 0:02:47]} 4. Nf3 {[%emt 0:00:15]} Nxb5 {[%emt 0:05:34]} 5. Nxb5 {[%emt 0:00:16]} a6 {[%emt 0:00:33]} 6. Nc3 {[%emt 0:00:20]} e6 {[%emt 0:00:21]} 7. d4 {[%emt 0:01:57]} cxd4 {[%emt 0:03:23]} 8. Qxd4 {[%emt 0:00:53]} d6 {[%emt 0:06:59]} 9. Be3 {[%emt 0:02:15]} e5 {[%emt 0:12:08]} 10. Qd3 {[%emt 0:04:01]} Nf6 {[%emt 0:01:40]} 11. O-O-O {[%emt 0:03:52]} Qc7 {[%emt 0:11:25]} 12. h3 {[%emt 0:11:40]} Be6 {[%emt 0:04:26]} 13. Kb1 {[%emt 0:07:40]} Be7 {[%emt 0:01:16]} 14. g4 {[%emt 0:04:07]} Rc8 {[%emt 0:12:19]} 15. g5 {[%emt 0:04:48]} Nd7 {[%emt 0:00:43]} 16. Nd5 {[%emt 0:04:31]} Bxd5 {[%emt 0:00:54]} 17. exd5 {[%emt 0:00:17]} b5 {[%emt 0:08:14]} 18. h4 {[%emt 0:03:08]} Qc4 {[%emt 0:08:23]} 19. Qxc4 {[%emt 0:02:40]} Rxc4 {[%emt 0:00:08]} 20. Nd2 {[%emt 0:02:29]} Rc8 {[%emt 0:00:26]} 21. Nb3 {[%emt 0:02:23]} Bd8 {[%emt 0:00:53]} 22. f4 {[%emt 0:01:13]} a5 {[%emt 0:06:44]} 23. fxe5 {[%emt 0:02:22]} Nxe5 {[%emt 0:01:00]} 24. Nd4 {[%emt 0:01:10]} Kd7 {[%emt 0:06:01]} 25. Bf4 {[%emt 0:04:59]} b4 {[%emt 0:02:51]} 26. Bxe5 {[%emt 0:00:59]} dxe5 {[%emt 0:00:04]} 27. Nc6 {[%emt 0:00:24]} Kd6 {[%emt 0:01:52]} 28. Rhf1 {[%emt 0:02:38]} Rf8 {[%emt 0:00:27]} 29. Rf5 {[%emt 0:04:09]} f6 {[%emt 0:01:03]} 30. Nxe5 {[%emt 0:01:45]} g6 {[%emt 0:01:40]} 31. Rf3 {[%emt 0:04:10]} Kxe5 {[%emt 0:00:25]} 32. d6 {[%emt 0:01:12]} Bb6 {[%emt 0:00:27]} 33. Rfd3 {[%emt 0:00:55]} fxg5 {[%emt 0:00:43]} 34. hxg5 {[%emt 0:00:39]} Ke6 {[%emt 0:00:35]} 35. d7 {[%emt 0:01:07]} Rcd8 {[%emt 0:00:17]} 36. Rd6+ {[%emt 0:00:17]} Ke7 {[%emt 0:00:23]} 37. Rxb6 {[%emt 0:00:32]} Rxd7 {[%emt 0:00:37]} 38. Rxd7+ {[%emt 0:00:07]} Kxd7 {[%emt 0:00:05]} 39. Kc1 {[%emt 0:00:11]} Kc7 {[%emt 0:00:55]} 40. Ra6 {[%emt 0:00:16]} Kb7 {[%emt 0:00:39]} 41. Rxa5 {[%emt 0:30:26]} Rf4 {[%emt 0:05:23]} 42. Re5 {[%emt 0:00:00]} Rh4 {[%emt 0:03:11]} 43. Kd2 {[%emt 0:00:00]} Rd4+ {[%emt 0:01:17]} 44. Ke3 {[%emt 0:00:00]} Rh4 {[%emt 0:06:43]} 45. Re4 {[%emt 0:00:00]} Rh3+ {[%emt 0:01:56]} 46. Kf4 {[%emt 0:00:00]} Rh1 {[%emt 0:02:51]} 47. Rxb4+ {[%emt 0:00:00]} Kc6 {[%emt 0:00:15]} 48. Ke5 {[%emt 0:00:00]} Rf1 {[%emt 0:01:00]} 49. Rf4 {[%emt 0:00:00]} Re1+ {[%emt 0:00:26]} 50. Kf6 {[%emt 0:00:00]} Rd1 {[%emt 0:00:23]} 51. Kg7 {[%emt 0:00:00]} Rd7+ {[%emt 0:00:23]} 52. Rf7 {[%emt 0:00:00]} Rd2 {[%emt 0:01:24]} 53. Kxh7 {[%emt 0:00:00]} Rxc2 {[%emt 0:00:11]} 54. Kxg6 {[%emt 0:00:00]} Rxb2 {[%emt 0:00:08]} 55. Rf6+ {[%emt 0:00:00]} Kd7 {[%emt 0:00:14]} 56. Kf7 {[%emt 0:00:00]} Re2 {[%emt 0:01:26]} 57. a4 {[%emt 0:00:00]} Re7+ {[%emt 0:00:35]} 58. Kg6 {[%emt 0:00:00]} Re8 {[%emt 0:00:32]} 59. Rf7+ {[%emt 0:00:00]} Ke6 {[%emt 0:00:32]} 60. Rf6+ {[%emt 0:00:00]} Ke7 {[%emt 0:00:12]} 61. Kg7 {[%emt 0:00:00]} Ra8 {[%emt 0:00:50]} 62. g6 {[%emt 0:00:00]} Rxa4 {[%emt 0:00:49]} 63. Rf7+ {[%emt 0:00:00]} Ke8 {[%emt 0:00:15]} 64. Kg8 {[%emt 0:00:00]} Rg4 {[%emt 0:00:34]} 65. g7 {[%emt 0:00:00]} Rg2 {[%emt 0:00:59]} 66. Rf5 {[%emt 0:00:00]} Ke7 {[%emt 0:05:01]} 67. Rf7+ {[%emt 0:01:11]} Ke8 {[%emt 0:00:12]} 68. Ra7 {[%emt 0:00:40]} Rg1 {[%emt 0:01:06]} 69. Kh7 {[%emt 0:00:32]} Rh1+ {[%emt 0:00:26]} 70. Kg6 {[%emt 0:00:04]} Rg1+ {[%emt 0:00:20]} 71. Kf6 {[%emt 0:02:18]} Rf1+ {[%emt 0:00:11]} 72. Ke6 {[%emt 0:00:39]} Re1+ {[%emt 0:00:18]} 73. Kd6 {[%emt 0:00:52]} Rd1+ {[%emt 0:00:09]} 74. Kc7 {[%emt 0:01:42]} Rc1+ {[%emt 0:01:43]} 1/2-1/2